bitfinex-derivatives/quotes_SOLF0:USTF0_20251210
["timestamp","ask_amount","ask_price","bid_price","bid_amount"]
[1765395464831,0.04674606,138.19,138.16,0.04778166]
[1765395465732,0.04674606,138.19,138.17,6.5129]
[1765395466139,61.22,138.27,138.18,101.3077]
[1765395466441,101.251,138.26,138.15,101.3301]
[1765395466635,61.22,138.27,138.18,101.3039]
[1765395466937,61.22,138.27,138.2,101.2919]
[1765395467131,0.04724813,138.25,138.22,0.05248571]
[1765395467841,0.04724813,138.25,138.13,101.3416]
[1765395467842,101.2654,138.24,138.13,101.3416]
[1765395468634,162.4677,138.27,138.15,101.328]
[1765395468835,0.04713994,138.22,138.2,0.05096971]
[1765395469136,0.05558391,138.22,138.2,0.05096971]
[1765395469645,61.22,138.27,138.21,101.2856]
[1765395469845,61.22,138.27,138.23,6.51]
[1765395470227,162.4342,138.34,138.21,101.2856]
[1765395470434,61.24,138.34,138.24,101.2629]
[1765395470738,0.05526086,138.3,138.25,0.0512757]
[1765395470927,0.05526086,138.3,138.26,0.04776057]
[1765395471133,0.05526086,138.3,138.26,101.29776057]
[1765395471340,0.05526086,138.3,138.26,0.04776057]
[1765395472135,0.05526086,138.3,138.27,6.5082]
[1765395472338,0.05526086,138.3,138.26,0.04776057]
[1765395473236,6.5081,138.28,138.26,0.04776057]
[1765395473741,101.3025,138.19,138.08,101.38]
[1765395474343,101.3103,138.18,138.08,101.3816]
[1765395474533,101.2946,138.2,138.09,101.3731]
[1765395474739,0.05089567,138.16,138.13,0.0471236]
[1765395475142,0.05089567,138.16,138.13,101.3875236]
[1765395475342,61.24,138.21,138.13,0.0471236]
[1765395476035,6.5119,138.2,138.14,6.5144]
[1765395476231,61.24,138.21,138.16,0.0492957]
[1765395476232,0.05297964,138.18,138.16,0.0492957]
[1765395477349,61.24,138.21,138.16,101.3715957]
[1765395477537,61.24,138.21,138.16,0.0492957]
[1765395477738,101.2314,138.29,138.17,101.3162]
[1765395478045,162.4785,138.28,138.17,101.3162]
[1765395478246,0.05489936,138.24,138.21,0.04857973]
[1765395478844,6.5105,138.23,138.21,0.04857973]
[1765395479040,0.05489936,138.24,138.21,0.04857973]
[1765395481046,6.5104,138.23,138.21,0.04857973]
[1765395481446,0.05489936,138.24,138.21,0.04857973]
[1765395481748,0.05489936,138.24,138.11,369.2313]
[1765395481749,101.2809,138.22,138.11,162.5568]
[1765395481938,119.99472222,138.25,138.1,101.3648]
[1765395481939,101.2585,138.25,138.13,101.3453]
[1765395482539,181.21272222,138.28,138.16,101.3219]
[1765395482745,0.04848102,138.23,138.21,0.04667553]
[1765395482942,61.24,138.28,138.21,0.04667553]
[1765395483250,61.26,138.35,138.25,101.2575]
[1765395483448,67.7649,138.35,138.26,101.2487]
[1765395483643,61.26,138.35,138.29,101.2262]
[1765395483847,101.107,138.46,138.34,101.191]
[1765395484042,306.38821237,138.6,138.34,101.191]
[1765395484043,101.0709,138.51,138.4,6.502]
[1765395484345,101.0636,138.52,138.4,101.1477]
[1765395484548,61.26,138.53,138.42,101.131]
[1765395484748,61.26,138.53,138.43,101.1224]
[1765395484945,61.26,138.53,138.44,101.1161]
[1765395485148,61.26,138.53,138.47,0.04649132]
[1765395485343,101.0966,138.48,138.34,101.1876]
[1765395485548,101.077,138.5,138.39,107.6534]
[1765395485745,101.0949,138.48,138.36,101.1736]
[1765395486148,101.0725,138.51,138.4,101.1449]
[1765395486446,101.0725,138.51,138.44,0.05103331]
[1765395486447,0.05121094,138.47,138.44,0.05103331]
[1765395486638,61.26,138.53,138.44,0.05103331]
[1765395486639,101.0502,138.54,138.44,0.05103331]
[1765395486841,101.0502,138.54,138.43,101.1229]
[1765395487036,6.4959,138.54,138.43,169.6236]
[1765395487240,107.5422,138.54,138.43,169.6236]
[1765395487448,101.065,138.52,138.43,62.0]
[1765395487653,101.0447,138.55,138.46,0.05049742]
[1765395487843,101.0447,138.55,138.49,0.0496951]
[1765395487844,101.0569,138.53,138.49,0.0496951]
[1765395488153,107.5454,138.54,138.49,0.0496951]
[1765395488357,101.0373,138.56,138.49,0.0496951]
[1765395488549,101.0485,138.54,138.49,0.0496951]
[1765395488738,101.0562,138.53,138.49,0.0496951]
[1765395488941,101.0568,138.53,138.49,0.0496951]
[1765395489156,101.0737,138.51,138.49,0.0496951]
[1765395489448,101.0568,138.53,138.49,0.0496951]
[1765395489449,100.9981,138.61,138.49,0.0496951]
[1765395489639,101.0278,138.57,138.53,0.05447604]
[1765395489841,101.0129,138.59,138.53,0.05447604]
[1765395489842,3.38211237,138.6,138.53,0.05447604]
[1765395491152,3.38211237,138.6,138.54,101.0439]
[1765395491544,3.38211237,138.6,138.53,0.05447604]
[1765395491746,3.38211237,138.6,138.53,6.55057604]
[1765395491945,100.9308,138.7,138.58,101.012]
[1765395492145,100.9144,138.73,138.63,0.04831505]
[1765395492347,107.4013,138.73,138.62,100.9827]
[1765395492544,107.4013,138.73,138.67,0.05267833]
[1765395492748,162.077,138.75,138.67,0.05267833]
[1765395492945,61.18,138.75,138.67,0.05267833]
[1765395493146,100.817,138.86,138.72,100.9077]
[1765395493347,100.8307,138.84,138.78,0.05017407]
[1765395493544,100.8497,138.81,138.69,100.9334]
[1765395493746,100.8307,138.84,138.71,100.9166]
[1765395493956,100.8306,138.84,138.71,107.4044]
[1765395494265,100.8669,138.79,138.67,100.9464]
[1765395494551,0.05017407,138.74,138.72,0.050999]
[1765395495258,0.05017407,138.74,138.65,100.9624]
[1765395495452,100.8792,138.77,138.64,107.4625]
[1765395495653,100.867,138.79,138.66,100.9553]
[1765395495956,107.3511,138.79,138.66,107.4454]
[1765395496154,0.05431087,138.74,138.71,0.05471312]
[1765395496650,100.8275,138.84,138.71,0.05471312]
[1765395496651,100.8268,138.85,138.72,100.9144]
[1765395496853,100.8456,138.82,138.7,168.5133]
[1765395497258,100.852,138.81,138.7,61.1]
[1765395497448,107.3521,138.79,138.67,208.3857]
[1765395497645,0.0468622,138.74,138.72,0.04969128]
[1765395497846,0.0468622,138.74,138.72,0.05557929]
[1765395498050,0.0468622,138.74,138.63,100.9754]
[1765395498261,61.14,138.78,138.65,100.9622]
[1765395498560,100.8813,138.77,138.64,100.9666]
[1765395498765,100.8883,138.76,138.62,100.9852]
[1765395498960,0.05288724,138.7,138.68,0.05313885]
[1765395499263,0.05309178,138.7,138.68,0.05313885]
[1765395499451,18.73422222,138.69,138.55,101.0354]
[1765395499654,61.1,138.7,138.58,101.014]
[1765395499858,61.1,138.7,138.59,101.0077]
[1765395500055,61.1,138.7,138.58,101.014]
[1765395500056,100.9477,138.68,138.56,101.0282]
[1765395500258,100.9685,138.65,138.51,61.06]
[1765395500459,0.0478081,138.59,138.57,0.0556258]
[1765395500665,0.05246933,138.59,138.57,0.0556258]
[1765395501960,0.00246933,138.59,138.57,0.0556258]
[1765395502267,61.1,138.63,138.57,0.0556258]
[1765395502659,162.0852,138.63,138.57,0.0556258]
[1765395503166,0.0462294,138.61,138.57,0.0556258]
[1765395503558,101.0443294,138.61,138.57,0.0556258]
[1765395503763,0.0462294,138.61,138.57,0.0556258]
[1765395504655,100.9318,138.7,138.57,0.0556258]
[1765395504856,6.489,138.69,138.59,107.5024]
[1765395505057,61.1,138.71,138.59,107.5024]
[1765395505360,61.1,138.71,138.63,107.4691]
[1765395505664,0.05352599,138.68,138.66,0.05336442]
[1765395506770,61.1,138.71,138.66,0.05336442]
[1765395508155,100.8858,138.76,138.66,0.05336442]
[1765395508356,100.9303,138.7,138.61,62.0]
[1765395508657,100.9076,138.73,138.62,100.987]
[1765395508863,67.5646,138.78,138.68,107.4328]
[1765395509052,61.08,138.78,138.69,100.9344]
[1765395509365,0.05213035,138.75,138.72,0.05246466]
[1765395510668,100.8814,138.77,138.72,0.05246466]
[1765395510863,61.08,138.78,138.72,0.05246466]
[1765395511869,61.08,138.78,138.72,100.96596466]
[1765395512073,61.08,138.78,138.72,0.05246466]
[1765395512767,61.08,138.78,138.72,100.96606466]
[1765395513065,61.08,138.78,138.73,100.9071]
[1765395513362,100.8206,138.85,138.74,100.8946]
[1765395513662,61.06,138.86,138.78,0.05359553]
[1765395514162,61.06,138.86,138.8,100.8554]
[1765395514351,100.7911,138.89,138.82,0.04646682]
[1765395514552,100.7843,138.9,138.84,0.04868361]
[1765395514757,6.4799,138.88,138.86,0.04960509]
[1765395514963,100.7793,138.91,138.86,0.04658233]
[1765395515163,100.7949,138.89,138.77,100.878]
[1765395515353,100.8274,138.84,138.73,100.903]
[1765395515558,100.8274,138.84,138.72,100.9132]
[1765395515860,61.06,138.85,138.74,100.8986]
[1765395516060,61.06,138.85,138.75,100.8918]
[1765395516263,0.04658233,138.81,138.79,0.05078681]
[1765395517066,0.04658233,138.81,138.8,6.4836]
[1765395517369,0.04658233,138.81,138.79,0.05078681]
[1765395517569,61.06,138.85,138.8,6.4833]
[1765395517765,61.06,138.85,138.79,100.91388681]
[1765395517766,100.7917,138.89,138.79,0.05078681]
[1765395518065,100.8057,138.87,138.76,100.8816]
[1765395518270,6.4818,138.84,138.75,6.4857]
[1765395518575,100.8026,138.88,138.78,0.050587]
[1765395518767,6.4791,138.9,138.82,0.05466833]
[1765395519267,100.7927,138.89,138.82,0.05466833]
[1765395519463,161.8194,138.91,138.82,0.05466833]
[1765395519661,161.8194,138.91,138.85,0.05327584]
[1765395519662,61.04,138.91,138.85,0.05327584]
[1765395522071,100.7881,138.9,138.85,0.05327584]
[1765395522572,6.4806,138.87,138.85,0.05327584]
[1765395523169,6.482,138.84,138.76,6.4853]
[1765395523370,6.482,138.84,138.75,100.8897]
[1765395523671,100.7932,138.89,138.77,100.873]
[1765395524073,100.8021,138.88,138.77,100.8779]
[1765395524280,0.05327584,138.84,138.81,0.05150934]
[1765395524467,100.8021,138.88,138.81,0.05150934]
[1765395524667,100.8151,138.86,138.81,0.05150934]
[1765395524867,100.8288,138.84,138.81,0.05150934]
[1765395525570,6.4826,138.83,138.81,0.05150934]
[1765395525773,100.8465,138.82,138.71,60.98]
[1765395525968,6.4862,138.75,138.65,6.4903]
[1765395526168,18.73422222,138.82,138.68,100.9372]
[1765395526169,61.02,138.76,138.68,100.9372]
[1765395526375,61.02,138.76,138.69,100.9356]
[1765395526574,61.02,138.76,138.71,6.4875]
[1765395526774,61.02,138.82,138.72,100.96041065]
[1765395526975,61.02,138.82,138.73,100.9068]
[1765395527378,61.02,138.82,138.75,6.4856]
[1765395527577,11.02,138.82,138.76,100.8851]
[1765395527779,18.73422222,138.9,138.78,100.91841861]
[1765395527980,61.02,138.89,138.83,0.05544428]
[1765395528384,6.4806,138.87,138.83,0.05544428]
[1765395528772,61.02,138.89,138.83,0.05544428]
[1765395529176,161.8142,138.89,138.83,0.05544428]
[1765395529380,180.54842222,138.89,138.83,0.05544428]
[1765395529576,61.02,138.89,138.83,0.05544428]
[1765395529779,61.02,138.89,138.83,6.53734428]
[1765395530377,61.02,138.89,138.83,0.05544428]
[1765395531189,100.8081,138.87,138.83,0.05544428]
[1765395531476,6.4814,138.85,138.83,0.05544428]
[1765395531684,100.8349,138.83,138.72,100.9138]
[1765395531880,61.0,138.82,138.71,100.9176]
[1765395532083,100.8529,138.81,138.7,100.9288]
[1765395532281,161.845,138.82,138.7,100.9288]
[1765395532678,0.05166473,138.77,138.75,0.05264937]
[1765395532978,0.04774448,138.77,138.75,0.05264937]
[1765395533883,61.0,138.82,138.75,0.05264937]
[1765395534386,55.57675867,138.82,138.75,0.05264937]
[1765395534684,55.57675867,138.82,138.76,100.8853]
[1765395535080,55.57675867,138.82,138.8,6.4834]
[1765395535291,61.0,138.88,138.8,6.52924314]
[1765395536183,61.0,138.88,138.8,0.04584314]
[1765395536576,6.481,138.86,138.8,0.04584314]
[1765395536776,6.91775618,138.86,138.8,0.04584314]
[1765395537790,6.91775618,138.83,138.8,0.04584314]
[1765395538179,6.91775618,138.83,138.71,100.9187]
[1765395538379,13.40145618,138.8,138.71,100.9187]
[1765395538686,13.40145618,138.8,138.71,100.9209]
[1765395539190,13.40145618,138.8,138.74,0.05522408]
[1765395539488,0.05365887,138.77,138.74,0.05522408]
[1765395540280,6.91775618,138.86,138.75,100.8875]
[1765395540475,6.91775618,138.86,138.76,100.883]
[1765395540685,6.91775618,138.83,138.72,100.9105]
[1765395540882,6.91775618,138.83,138.74,100.8999]
[1765395541384,6.91775618,138.86,138.79,6.4839]
[1765395541590,61.0,138.87,138.81,0.05294423]
[1765395543082,61.0,138.87,138.81,100.89874423]
[1765395543594,12.03923518,138.94,138.83,100.8341]
[1765395543783,73.05923518,138.94,138.87,0.04652203]
[1765395543984,6.479,138.9,138.87,0.04652203]
[1765395544385,100.7725,138.92,138.87,0.04652203]
[1765395544784,73.05923518,138.94,138.87,0.04652203]
[1765395545786,61.02,138.94,138.87,100.84852203]
[1765395545986,61.02,138.94,138.87,0.04652203]
[1765395546486,61.02,138.94,138.87,100.84922203]
[1765395546687,61.02,138.94,138.87,0.04652203]
[1765395546893,61.02,138.94,138.88,100.7966]
[1765395547300,3.33693481,138.96,138.91,100.774]
[1765395547495,3.33693481,138.96,138.9,100.7828]
[1765395547496,3.33693481,138.96,138.92,0.04682214]
[1765395548698,112.79643518,138.94,138.81,100.8466]
[1765395548997,73.03923518,138.94,138.84,100.8273]
[1765395549303,73.03923518,138.94,138.85,100.8198]
[1765395549493,3.33693481,138.96,138.86,100.8078]
[1765395549695,0.0455088,138.92,138.9,0.05511942]
[1765395550099,0.0455088,138.92,138.9,6.53361942]
[1765395550303,0.0455088,138.92,138.9,0.05511942]
[1765395551802,3.33693481,138.96,138.9,102.27531942]
[1765395552100,3.33693481,138.96,138.9,0.05511942]
[1765395552504,3.33693481,138.96,138.93,100.7615]
[1765395552803,3.33693481,138.96,138.93,0.05162893]
[1765395553402,60.98,139.02,138.95,100.7474]
[1765395553601,60.98,139.02,138.97,0.04938634]
[1765395554190,12.03923518,138.98,138.89,100.7908]
[1765395554392,60.98,139.02,138.9,100.7831]
[1765395554796,60.98,139.02,138.91,100.7724]
[1765395554998,100.7051,139.01,138.91,6.4782]
[1765395555199,0.04624867,138.97,138.95,0.04718124]
[1765395555499,0.04624867,138.97,138.83,100.8339]
[1765395555500,100.7516,138.95,138.83,100.8339]
[1765395555706,60.98,138.95,138.85,100.818]
[1765395555893,60.98,138.95,138.87,100.8042]
[1765395556307,0.0486073,138.92,138.9,0.04667896]
[1765395557905,0.0486073,138.92,138.81,100.8461]
[1765395557906,1.44,138.91,138.81,100.8461]
[1765395558106,6.479,138.9,138.82,6.4824]
[1765395558810,0.05146686,138.87,138.85,0.05498324]
[1765395559010,0.04689845,138.87,138.85,0.05498324]
[1765395563802,0.04689845,138.87,138.85,6.53598324]
[1765395565006,0.04689845,138.87,138.85,0.05498324]
[1765395568407,6.52739845,138.87,138.85,0.05498324]
[1765395569014,6.481,138.86,138.77,6.4847]
[1765395569201,6.481,138.86,138.76,60.94]
[1765395569405,6.481,138.86,138.76,161.8222]
[1765395569614,6.481,138.86,138.79,6.4836]
[1765395569815,6.4815,138.85,138.76,60.94]
[1765395570014,0.05525357,138.82,138.79,0.05519193]
[1765395570211,6.4833,138.81,138.79,0.05519193]
[1765395570607,0.05525357,138.82,138.79,0.05519193]
[1765395572016,0.05525357,138.82,138.79,6.53889193]
[1765395572407,0.05525357,138.82,138.8,6.4833]
[1765395572809,100.8085,138.87,138.79,0.05519193]
[1765395573110,100.8003,138.88,138.76,100.885]
[1765395573310,100.8073,138.87,138.75,100.8896]
[1765395573716,6.4819,138.84,138.8,0.04785525]
[1765395573909,0.04919929,138.83,138.8,0.04785525]
[1765395575812,0.04919929,138.83,138.81,6.483]
[1765395576215,18.4902772,138.89,138.8,100.90045525]
[1765395576414,24.9697772,138.89,138.82,6.4824]
[1765395576617,24.9697772,138.89,138.8,100.8526]
[1765395576822,12.03923518,138.97,138.83,100.8333]
[1765395577022,100.7433,138.96,138.84,100.8273]
[1765395577321,0.05033458,138.91,138.89,0.05026674]
[1765395577622,0.04667379,138.91,138.89,0.05026674]
[1765395577819,100.7415,138.96,138.89,0.05026674]
[1765395578021,149.18671523,138.97,138.89,0.05026674]
[1765395578321,100.741,138.96,138.89,0.05026674]
[1765395578517,6.4776,138.93,138.89,0.05026674]
[1765395578821,0.04710313,138.92,138.89,0.05026674]
[1765395579022,6.4786,138.91,138.89,0.05026674]
[1765395579523,0.04710313,138.92,138.89,0.05026674]
[1765395580225,100.82000313,138.92,138.83,6.4818]
[1765395580521,21.71,138.98,138.89,100.7876]
[1765395580719,6.4744,139.0,138.9,6.4786]
[1765395581025,100.7031,139.02,138.89,100.7873]
[1765395581026,100.698,139.02,138.89,100.7873]
[1765395581231,0.05179882,138.97,138.94,0.0485142]
[1765395581619,100.6564,139.08,138.95,100.746]
[1765395581818,61.0,139.07,138.97,100.7326]
[1765395582016,515.9713,139.15,138.96,100.7394]
[1765395582017,100.6137,139.14,139.01,100.7039]
[1765395582218,100.6249,139.12,139.0,112.74923518]
[1765395582720,0.04557105,139.07,139.05,0.05015507]
[1765395583715,6.4694,139.11,139.05,0.05015507]
[1765395584019,100.6357,139.11,139.05,0.05015507]
[1765395584216,100.64,139.1,139.05,0.05015507]
[1765395584411,130.17864112,139.13,139.05,0.05015507]
[1765395584616,100.6202,139.13,139.05,0.05015507]
[1765395584816,161.6002,139.13,139.05,0.05015507]
[1765395585016,6.4694,139.11,139.05,0.05015507]
[1765395585221,100.6401,139.1,139.05,0.05015507]
[1765395585421,100.6467,139.09,139.05,0.05015507]
[1765395585623,107.1326,139.07,139.05,0.05015507]
[1765395586126,100.6541,139.08,139.05,0.05015507]
[1765395586326,100.6467,139.09,139.05,0.05015507]
[1765395586520,100.6536,139.08,139.05,0.05015507]
[1765395586723,100.6397,139.1,139.05,0.05015507]
[1765395586923,100.647,139.09,139.05,0.05015507]
[1765395587428,107.1324,139.07,139.05,0.05015507]
[1765395587627,100.6833,139.04,138.96,60.94]
[1765395587926,6.4742,139.01,138.92,6.4777]
[1765395588122,60.96,139.03,138.92,21.40084422]
[1765395588329,137.37154112,139.03,138.91,100.7762]
[1765395588622,0.04816014,138.98,138.96,0.05300808]
[1765395588829,0.05015507,138.98,138.96,0.05300808]
[1765395589428,100.6684,139.06,138.96,1.49300808]
[1765395589732,6.4721,139.05,138.96,6.4758]
[1765395590234,100.6768,139.05,138.93,100.7585]
[1765395590431,100.6768,139.05,138.98,0.05288113]
[1765395590639,6.4718,139.06,138.98,0.05288113]
[1765395591426,100.6735,139.06,138.98,0.05288113]
[1765395591621,100.6824,139.04,138.98,0.05288113]
[1765395591827,100.6647,139.07,139.0,0.04777032]
[1765395592026,100.6611,139.07,139.02,0.05496634]
[1765395592330,100.6693,139.06,139.03,0.05309114]
[1765395592534,100.6906,139.03,138.93,60.9]
[1765395593028,100.6759,139.05,138.93,60.9]
[1765395593223,100.6926,139.03,138.93,60.9]
[1765395593422,100.6926,139.03,138.97,0.05217143]
[1765395593423,100.7058,139.01,138.97,0.05217143]
[1765395593727,0.045716,138.99,138.97,0.05217143]
[1765395593931,100.764216,138.99,138.88,6.4798]
[1765395594127,100.7259,138.98,138.84,72.93923518]
[1765395594331,100.7405,138.96,138.84,60.9]
[1765395594526,100.7185,138.99,138.87,100.8045]
[1765395594726,100.7058,139.01,138.89,100.7887]
[1765395594932,0.04908969,138.96,138.94,0.04783309]
[1765395595131,0.04822273,138.96,138.94,0.05529142]
[1765395595637,6.4738,139.01,138.94,0.05529142]
[1765395595835,6.4738,139.01,138.91,100.773]
[1765395596035,100.6788,139.05,138.93,100.7608]
[1765395596240,6.4731,139.03,138.95,6.4763]
[1765395596535,0.05033347,139.0,138.98,0.04934644]
[1765395596835,0.04773379,139.0,138.98,0.04934644]
[1765395597337,6.52223379,139.0,138.98,0.04934644]
[1765395598038,100.7291,138.98,138.88,22.07703822]
[1765395598337,100.719,138.99,138.87,100.805]
[1765395598542,6.4768,138.95,138.88,6.4796]
[1765395598744,100.7433,138.96,138.84,235.76343518]
[1765395599041,0.04656932,138.91,138.89,0.05231345]
[1765395599244,0.05093316,138.91,138.89,0.05231345]
[1765395601043,0.05093316,138.91,138.89,6.53151345]
[1765395601229,0.00093316,138.91,138.89,0.05231345]
[1765395601435,100.7191,138.99,138.9,6.4787]
[1765395601748,112.77703518,138.97,138.85,22.06078093]
[1765395602052,100.7269,138.98,138.87,100.8044]
[1765395602440,0.04835627,138.94,138.91,0.04678192]
[1765395602938,6.4777,138.93,138.91,0.04678192]
[1765395603836,0.04835627,138.94,138.91,0.04678192]
[1765395604034,100.6896,139.03,138.91,6.95422481]
[1765395604340,67.84744289,139.04,138.91,107.68364289]
[1765395604538,100.7047,139.01,138.88,6.90744289]
[1765395604738,107.61214289,139.01,138.89,62.0]
[1765395604946,100.7121,139.0,138.94,0.05133813]
[1765395605145,6.90744289,138.96,138.85,21.34656069]
[1765395605347,6.90744289,138.96,138.85,100.8189]
[1765395605639,6.475,138.99,138.88,100.7961]
[1765395606038,107.61624289,139.01,138.86,107.71874289]
[1765395606231,60.94,139.04,138.91,0.05340717]
[1765395606431,60.94,139.04,138.89,107.69414289]
[1765395606432,60.94,139.04,138.93,100.7616]
[1765395606633,6.4734,139.02,138.93,6.4772]
[1765395606841,161.6255,139.04,138.91,107.67904289]
[1765395607235,161.6255,139.04,138.85,323.53868136]
[1765395607236,100.7214,138.99,138.96,0.04747693]
[1765395607428,6.90744289,138.91,138.76,100.885]
[1765395607640,100.8501,138.81,138.68,100.9431]
[1765395607830,6.90744289,138.76,138.65,15.01]
[1765395608040,100.9179,138.72,138.56,101.0284]
[1765395608241,107.4339,138.68,138.53,101.0524]
[1765395608541,0.04810576,138.62,138.59,0.04952655]
[1765395608745,100.9847,138.63,138.51,6.90744289]
[1765395608935,100.9695,138.65,138.47,201.30117642]
[1765395608936,101.0028,138.6,138.47,201.30117642]
[1765395609136,0.04966073,138.58,138.56,0.04846041]
[1765395609333,107.88954289,138.63,138.48,114.49094289]
[1765395609536,100.9913,138.62,138.49,101.0789]
[1765395609737,107.90594289,138.61,138.47,140.38117642]
[1765395609941,101.0159,138.59,138.47,140.38117642]
[1765395610139,101.0439,138.55,138.41,101.1362]
[1765395610347,101.0285,138.57,138.47,0.04893392]
[1765395610645,101.0653,138.52,138.39,6.90744289]
[1765395610844,101.0491,138.54,138.4,119.80837147]
[1765395611047,101.0654,138.52,138.38,163.1621]
[1765395611245,101.0654,138.52,138.34,187.5102]
[1765395611246,101.1078,138.46,138.32,101.1996]
[1765395611447,101.1142,138.45,138.32,101.1996]
[1765395611640,0.04942385,138.4,138.37,0.04761985]
[1765395611840,101.1071,138.46,138.37,0.04761985]
[1765395612042,101.0855,138.49,138.37,101.1649]
[1765395612242,162.0429,138.52,138.39,119.81437147]
[1765395612443,101.071,138.51,138.39,18.66227147]
[1765395612654,101.1062,138.46,138.35,60.96]
[1765395612853,101.0955,138.48,138.39,0.05106586]
[1765395613048,101.0955,138.48,138.42,0.05177636]
[1765395613343,101.1218,138.44,138.42,0.05177636]
[1765395613549,101.116,138.45,138.42,0.04899273]
[1765395613748,101.0418,138.55,138.43,1.44]
[1765395613951,101.0418,138.55,138.41,18.66227147]
[1765395613952,101.0575,138.53,138.48,0.05451783]
[1765395614254,101.0749,138.5,138.36,101.1715]
[1765395614552,101.0869,138.49,138.36,101.1715]
[1765395614854,101.0959,138.48,138.35,162.1412]
[1765395615049,101.1225,138.44,138.31,104.54813481]
[1765395615243,0.04687075,138.39,138.36,0.04680061]
[1765395615441,101.123,138.44,138.31,123.21040628]
[1765395615642,101.1319,138.43,138.31,21.99920628]
[1765395615841,101.1363,138.42,138.31,3.33693481]
[1765395616045,101.1876,138.35,138.31,3.33693481]
[1765395616454,18.66227147,138.39,138.32,0.05402131]
[1765395616750,61.06,138.41,138.32,0.05402131]
[1765395616945,18.66227147,138.48,138.35,101.23260301]
[1765395617143,162.1587,138.5,138.4,0.04928014]
[1765395617346,18.66227147,138.54,138.44,0.04597374]
[1765395617542,18.66227147,138.54,138.48,0.04717634]
[1765395617543,101.0558,138.53,138.48,0.04717634]
[1765395617738,119.71427147,138.54,138.39,101.149]
[1765395617943,101.0633,138.52,138.36,101.1736]
[1765395618155,101.079,138.5,138.35,180.88347147]
[1765395618342,101.0633,138.52,138.37,101.1647]
[1765395618543,101.1095,138.46,138.31,104.54993481]
[1765395618743,101.1187,138.44,138.31,3.33693481]
[1765395618940,101.1142,138.45,138.31,3.33693481]
[1765395619257,61.1,138.46,138.34,101.1885]
[1765395619445,61.1,138.46,138.36,101.1741]
[1765395619647,0.04766391,138.42,138.4,0.05317746]
[1765395620441,0.04766391,138.42,138.35,101.1784]
[1765395620442,101.2064,138.32,138.13,101.3451]
[1765395620649,180.97787147,138.34,138.17,101.3159]
[1765395620952,79.78227147,138.34,138.18,101.3074]
[1765395621149,1.44,138.33,138.19,119.96327147]
[1765395621351,1.44,138.33,138.21,101.2865]
[1765395621544,0.04790005,138.28,138.26,0.04855548]
[1765395621748,0.05104526,138.28,138.26,0.04855548]
[1765395621944,1.44,138.27,138.26,0.04855548]
[1765395622856,0.05104526,138.28,138.26,0.04855548]
[1765395623046,1.49104526,138.28,138.26,0.04855548]
[1765395623248,0.05104526,138.28,138.26,0.04855548]
[1765395623459,61.12,138.4,138.26,0.04855548]
[1765395623648,321.67597147,138.6,138.26,0.04855548]
[1765395623649,101.0713,138.51,138.36,101.1726]
[1765395623848,101.0713,138.51,138.37,61.1]
[1765395624056,102.5189,138.5,138.37,61.1]
[1765395624248,1.44,138.5,138.38,101.162]
[1765395624451,0.05265021,138.45,138.43,0.04715892]
[1765395624658,0.05157146,138.45,138.43,0.04715892]
[1765395624959,101.0117,138.59,138.44,101.1116]
[1765395625255,1.44,138.6,138.47,101.0932]
[1765395625646,101.0348,138.56,138.41,101.1366]
[1765395625848,101.0495,138.54,138.42,61.12]
[1765395626058,101.0495,138.54,138.47,0.04573405]
[1765395626550,101.0855,138.49,138.38,61.12]
[1765395626954,101.1152,138.45,138.3,121.88027147]
[1765395627160,101.1393,138.42,138.3,2.0]
[1765395627349,101.1308,138.43,138.3,2.0]
[1765395627542,0.05020373,138.38,138.35,0.04669764]
[1765395627748,0.05020373,138.38,138.35,0.04785163]
[1765395628054,101.0565,138.53,138.39,101.1545]
[1765395628258,102.5051,138.52,138.4,61.12]
[1765395628450,1.44,138.52,138.4,61.12]
[1765395628646,101.0721,138.51,138.4,61.12]